fUST/lending_fUST_20250101
["ID","MTS","AMOUNT","RATE_DAILY","PERIOD"]
[347309891,1735679447046,-500.0,0.0002,3]
[347309892,1735679447056,-500.0,0.0002,3]
[347309893,1735679447065,-2921.96,0.0002,3]
[347309894,1735679447074,-500.0,0.0002,3]
[347309895,1735679447084,-500.0,0.0002,3]
[347309896,1735679447093,-281.59599461,0.0002,3]
[347309897,1735679447102,-799.98,0.0002,3]
[347309898,1735679447112,-191.44974,0.0002,2]
[347309899,1735679447121,-191.44974,0.0002,2]
[347309900,1735679447130,-689.76,0.0002,3]
[347309901,1735679447140,-500.0,0.0002,3]
[347309902,1735679447149,-861.64,0.0002,3]
[347309903,1735679447158,-151.0,0.0002,2]
[347309904,1735679447167,-600.4,0.0002,3]
[347309905,1735679447176,-731.78,0.0002,3]
[347309906,1735679447186,-751.77,0.0002,3]
[347309907,1735679447196,-500.0,0.0002,3]
[347309908,1735679447205,-730.16,0.0002,3]
[347309909,1735679447215,-756.61,0.0002,3]
[347309910,1735679447225,-500.0,0.0002,3]
[347309911,1735679447234,-2423.86,0.0002,3]
[347309912,1735679447244,-1420.74,0.0002,3]
[347309913,1735679447253,-39820.71,0.0002,3]
[347309914,1735679447262,-500.0,0.0002,3]
[347309915,1735679447273,-1014.13,0.0002,3]
[347309916,1735679447282,-500.0,0.0002,3]
[347309917,1735679447292,-1726.52,0.0002,3]
[347309918,1735679447302,-6262.73,0.0002,3]
[347309919,1735679447311,-1078.31,0.0002,3]
[347309920,1735679447320,-1324.32,0.0002,3]
[347309921,1735679447329,-1826.49,0.0002,3]
[347309922,1735679447338,-500.0,0.0002,3]
[347309923,1735679447347,-885.37,0.0002,3]
[347309924,1735679447355,-961.81,0.0002,3]
[347309925,1735679447364,-754.45,0.0002,3]
[347309926,1735679447373,-1477.71,0.0002,3]
[347309927,1735679447383,-915.66,0.0002,3]
[347309928,1735679447392,-500.0,0.0002,3]
[347309929,1735679447401,-500.0,0.0002,3]
[347309930,1735679447411,-500.0,0.0002,3]
[347309931,1735679447421,-500.0,0.0002,3]
[347309932,1735679447430,-687.313315,0.0002,2]
[347309933,1735679447439,-500.0,0.0002,3]
[347309934,1735679447448,-500.0,0.0002,3]
[347309935,1735679447458,-687.313315,0.0002,2]
[347309936,1735679447467,-500.0,0.0002,3]
[347309937,1735679447476,-830.37,0.0002,3]
[347309938,1735679447486,-1182.84,0.0002,3]
[347309939,1735679447496,-5516.38,0.0002,3]
[347309940,1735679447505,-500.0,0.0002,3]
[347309941,1735679447514,-500.0,0.0002,3]
[347309942,1735679447531,-500.0,0.0002,3]
[347309943,1735679447543,-500.0,0.0002,3]
[347309944,1735679447552,-500.0,0.0002,3]
[347309945,1735679447561,-1548.35,0.0002,3]
[347309946,1735679447570,-8771.98,0.0002,3]
[347309947,1735679447579,-503.42,0.0002,3]
[347309948,1735679447588,-1016.18,0.0002,3]
[347309949,1735679447596,-500.0,0.0002,3]
[347309950,1735679447606,-500.0,0.0002,3]
[347309951,1735679447616,-956.62,0.0002,3]
[347309952,1735679447625,-845.91,0.0002,3]
[347309953,1735679447635,-500.0,0.0002,3]
[347309954,1735679447644,-309.90049118,0.0002,3]
[347309955,1735679447654,-500.0,0.0002,3]
[347309956,1735679447663,-727.17,0.0002,3]
[347309957,1735679447672,-500.0,0.0002,3]
[347309958,1735679447681,-571.77,0.0002,3]
[347309959,1735679447690,-2896.96,0.0002,3]
[347309960,1735679447699,-500.0,0.0002,3]
[347309961,1735679447710,-1237.87,0.0002,3]
[347309962,1735679447720,-565.9,0.0002,3]
[347309963,1735679447729,-4261.59,0.0002,3]
[347309964,1735679447739,-500.0,0.0002,3]
[347309965,1735679447748,-1582.67,0.0002,3]
[347309966,1735679447757,-500.0,0.0002,3]
[347309967,1735679447766,-389.805421,0.0002,2]
[347309968,1735679447776,-389.805421,0.0002,2]
[347309969,1735679447785,-150.0,0.00020021,2]
[347309970,1735679447795,-151.0,0.000201,4]
[347309971,1735679447804,-1000.0,0.000201,2]
[347309972,1735679447813,-618.0,0.000201,2]
[347309973,1735679447822,-150.0,0.0002011,2]
[347309974,1735679447832,-534.0,0.0002011,2]
[347309975,1735679447842,-2093.0,0.0002011,2]
[347309976,1735679447851,-2348.0,0.0002011,2]
[347309977,1735679447861,-151.0,0.0002011,2]
[347309978,1735679447873,-371.616481,0.0002011,2]
[347309979,1735679447883,-371.616481,0.0002011,2]
[347309980,1735679447892,-523.411285,0.0002011,2]
[347309981,1735679447903,-523.411285,0.0002011,2]
[347309982,1735679447912,-275.501114,0.0002011,2]
[347309983,1735679447921,-275.501114,0.0002011,2]
[347309984,1735679447930,-169.592575,0.0002011,2]
[347309985,1735679447939,-169.592575,0.0002011,2]
[347309986,1735679447949,-344.8621639,0.0002013,2]
[347309987,1735679447958,-427.87814357,0.00020173,2]
[347309988,1735679447967,-440.0,0.000202,2]
[347309989,1735679447977,-169.85,0.00020218,2]
[347309990,1735679447987,-152.0,0.00020218,2]
[347309991,1735679447996,-152.0,0.00020218,2]
[347309992,1735679448006,-152.0,0.00020218,2]
[347309993,1735679448015,-152.0,0.00020218,2]
[347309994,1735679448025,-152.0,0.00020218,2]
[347309995,1735679448035,-152.0,0.00020218,2]
[347309996,1735679448044,-152.0,0.00020218,2]
[347309997,1735679448054,-152.0,0.00020218,2]
[347309998,1735679448064,-152.0,0.00020218,2]
[347309999,1735679448073,-152.0,0.00020218,2]
[347310000,1735679448083,-152.0,0.00020218,2]
[347310001,1735679448092,-152.0,0.00020218,2]
[347310002,1735679448102,-152.0,0.00020218,2]
[347310003,1735679448111,-152.0,0.00020218,2]
[347310004,1735679448121,-152.0,0.00020218,2]
[347310005,1735679448130,-152.0,0.00020218,2]
[347310006,1735679448140,-152.0,0.00020218,2]
[347310007,1735679448149,-152.0,0.00020218,2]
[347310008,1735679448158,-152.0,0.00020218,2]
[347310009,1735679448167,-152.0,0.00020218,2]
[347310010,1735679448177,-152.0,0.00020218,2]
[347310011,1735679448187,-270.33,0.00020218,2]
[347310012,1735679448196,-500.0,0.00020273,3]
[347310013,1735679448206,-500.0,0.00020273,3]
[347310014,1735679448216,-151.0,0.00020273,2]
[347310015,1735679448226,-500.0,0.00020273,3]
[347310016,1735679448236,-151.0,0.00020273,2]
[347310017,1735679448245,-151.0,0.00020273,2]
[347310018,1735679448255,-151.0,0.00020273,2]
[347310019,1735679448265,-151.0,0.00020273,2]
[347310020,1735679448275,-555.25,0.00020273,3]
[347310021,1735679448285,-363.08933198,0.00020273,3]
[347310022,1735679448294,-7797.53,0.00020273,3]
[347310023,1735679448304,-500.0,0.00020273,3]
[347310024,1735679448312,-853.75,0.00020273,3]
[347310025,1735679448321,-500.0,0.00020273,3]
[347310026,1735679448330,-1271.48,0.00020273,3]
[347310027,1735679448340,-1470.73,0.00020273,3]
[347310028,1735679448351,-500.0,0.00020273,3]
[347310029,1735679448360,-532.45,0.00020273,3]
[347310030,1735679448370,-500.0,0.00020273,3]
[347310031,1735679448381,-500.0,0.00020273,3]
[347310032,1735679448391,-500.0,0.00020273,3]
[347310033,1735679448401,-855.05,0.00020273,3]
[347310034,1735679448413,-500.0,0.00020273,3]
[347310035,1735679448422,-683.45,0.00020273,3]
[347310036,1735679448431,-456.331573,0.00020273,2]
[347310037,1735679448440,-500.0,0.00020273,3]
[347310038,1735679448449,-500.0,0.00020273,3]
[347310039,1735679448459,-456.331573,0.00020273,2]
[347310040,1735679448468,-772.63,0.00020273,3]
[347310041,1735679448478,-500.0,0.00020273,3]
[347310042,1735679448487,-719.37,0.00020273,3]
[347310043,1735679448496,-500.0,0.00020273,3]
[347310044,1735679448506,-500.0,0.00020273,3]
[347310045,1735679448516,-500.0,0.00020273,3]
[347310046,1735679448525,-500.0,0.00020273,3]
[347310047,1735679448534,-500.0,0.00020273,3]
[347310048,1735679448543,-500.0,0.00020273,3]
[347310049,1735679448553,-595.35,0.00020273,3]
[347310050,1735679448562,-500.0,0.00020273,3]
[347310051,1735679448570,-500.0,0.00020273,3]
[347310052,1735679448579,-500.0,0.00020273,3]
[347310053,1735679448588,-500.0,0.00020273,2]
[347310054,1735679448597,-313.136126,0.00020273,2]
[347310055,1735679448607,-5062.37,0.00020273,3]
[347310056,1735679448617,-500.0,0.00020273,3]
[347310057,1735679448631,-623.88,0.00020273,3]
[347310058,1735679448641,-500.0,0.00020273,3]
[347310059,1735679448651,-151.0,0.00020273,2]
[347310060,1735679448660,-906.38,0.00020273,3]
[347310061,1735679448669,-151.0,0.00020273,2]
[347310062,1735679448678,-624.44,0.00020273,3]
[347310063,1735679448687,-340.834427,0.00020273,2]
[347310064,1735679448696,-597.87,0.00020273,3]
[347310065,1735679448706,-340.834427,0.00020273,2]
[347310066,1735679448715,-151.0,0.00020273,2]
[347310067,1735679448725,-500.0,0.00020273,3]
[347310068,1735679448735,-500.0,0.00020273,3]
[347310069,1735679448745,-750.06,0.00020273,3]
[347310070,1735679448754,-1089.62,0.00020273,3]
[347310071,1735679448764,-557.74,0.00020273,3]
[347310072,1735679448774,-500.0,0.00020273,3]
[347310073,1735679448785,-151.0,0.00020273,2]
[347310074,1735679448795,-500.0,0.00020273,3]
[347310075,1735679448804,-151.0,0.00020273,2]
[347310076,1735679448813,-500.0,0.00020273,3]
[347310077,1735679448823,-1061.03,0.00020273,3]
[347310078,1735679448832,-545.23847779,0.00020273,3]
[347310079,1735679448841,-231.819887,0.00020273,2]
[347310080,1735679448851,-735.12,0.00020273,3]
[347310081,1735679448860,-231.819887,0.00020273,2]
[347310082,1735679448874,-561.1,0.00020273,3]
[347310083,1735679448883,-503.84527599,0.00020273,3]
[347310084,1735679448893,-230.623201,0.00020273,2]
[347310085,1735679448901,-500.0,0.00020273,3]
[347310086,1735679448911,-230.623201,0.00020273,2]
[347310087,1735679448921,-500.0,0.00020273,3]
[347310088,1735679448930,-723.8,0.00020273,3]
[347310089,1735679448939,-151.0,0.00020273,2]
[347310090,1735679448947,-499.0,0.00020273,2]
[347310091,1735679448957,-1078.54,0.00020273,3]
[347310092,1735679448966,-264.728668,0.00020273,2]
[347310093,1735679448975,-614.34,0.00020273,3]
[347310094,1735679448984,-500.0,0.00020273,3]
[347310095,1735679448993,-3291.31,0.00020273,3]
[347310096,1735679449002,-264.728668,0.00020273,2]
[347310097,1735679449012,-920.06,0.00020273,3]
[347310098,1735679449021,-596.25,0.00020273,3]
[347310099,1735679449030,-371.616481,0.00020273,2]
[347310100,1735679449039,-371.616481,0.00020273,2]
[347310101,1735679449048,-2095.76,0.00020273,3]
[347310102,1735679449057,-826.6,0.00020273,3]
[347310103,1735679449066,-500.0,0.00020273,3]
[347310104,1735679449075,-523.411285,0.00020273,2]
[347310105,1735679449085,-500.0,0.00020273,3]
[347310106,1735679449186,-833.34,0.00020273,3]
[347310107,1735679449196,-500.0,0.00020273,3]
[347310108,1735679449205,-523.411285,0.00020273,2]
[347310109,1735679449217,-1558.72,0.00020273,3]
[347310110,1735679449227,-2078.82,0.00020273,3]
[347310111,1735679449236,-500.0,0.00020273,3]
[347310112,1735679449246,-275.501114,0.00020273,2]
[347310113,1735679449255,-275.501114,0.00020273,2]
[347310114,1735679449265,-500.0,0.00020273,3]
[347310115,1735679449274,-1419.68,0.00020273,3]
[347310116,1735679449283,-169.592575,0.00020273,2]
[347310117,1735679449293,-169.592575,0.00020273,2]
[347310118,1735679449303,-500.0,0.00020273,3]
[347310119,1735679449314,-2921.96,0.00020273,3]
[347310120,1735679449323,-500.0,0.00020273,3]
[347310121,1735679449332,-500.0,0.00020273,3]
[347310122,1735679449343,-799.98,0.00020273,3]
[347310123,1735679449352,-191.44974,0.00020273,2]
[347310124,1735679449361,-191.44974,0.00020273,2]
[347310125,1735679449371,-689.76,0.00020273,3]
[347310126,1735679449380,-245.96079676,0.00020273,3]
[347310127,1735679449390,-861.64,0.00020273,3]
[347310128,1735679449399,-600.4,0.00020273,3]
[347310129,1735679449408,-731.78,0.00020273,3]
[347310130,1735679449417,-751.77,0.00020273,3]
[347310131,1735679449427,-500.0,0.00020273,3]
[347310132,1735679449436,-730.16,0.00020273,3]
[347310133,1735679449446,-756.61,0.00020273,3]
[347310134,1735679449456,-500.0,0.00020273,3]
[347310135,1735679449466,-2423.86,0.00020273,3]
[347310136,1735679449475,-1420.74,0.00020273,3]
[347310137,1735679449484,-39820.71,0.00020273,3]
[347310138,1735679449493,-500.0,0.00020273,3]
[347310139,1735679449503,-1014.13,0.00020273,3]
[347310140,1735679449513,-500.0,0.00020273,3]
[347310141,1735679449522,-1726.52,0.00020273,3]
[347310142,1735679449532,-6262.73,0.00020273,3]
[347310143,1735679449542,-1078.31,0.00020273,3]
[347310144,1735679449551,-1324.32,0.00020273,3]
[347310145,1735679449561,-1826.49,0.00020273,3]
[347310146,1735679449571,-500.0,0.00020273,3]
[347310147,1735679449581,-885.37,0.00020273,3]
[347310148,1735679449590,-961.81,0.00020273,3]
[347310149,1735679449599,-1477.71,0.00020273,3]
[347310150,1735679449609,-754.45,0.00020273,3]
[347310151,1735679449619,-915.66,0.00020273,3]
[347310152,1735679449629,-500.0,0.00020273,3]
[347310153,1735679449638,-561.23557064,0.00020273,3]
[347310154,1735679449649,-500.0,0.00020273,3]
[347310155,1735679449659,-687.313315,0.00020273,2]
[347310156,1735679449671,-500.0,0.00020273,3]
[347310157,1735679449680,-500.0,0.00020273,3]
[347310158,1735679449689,-687.313315,0.00020273,2]
[347310159,1735679449699,-500.0,0.00020273,3]
[347310160,1735679449709,-830.37,0.00020273,3]
[347310161,1735679449718,-1182.84,0.00020273,3]
[347310162,1735679449727,-5516.38,0.00020273,3]
[347310163,1735679449736,-500.0,0.00020273,3]
[347310164,1735679449745,-500.0,0.00020273,3]
[347310165,1735679449755,-500.0,0.00020273,3]
[347310166,1735679449764,-500.0,0.00020273,3]
[347310167,1735679449774,-500.0,0.00020273,3]
[347310168,1735679449783,-1548.35,0.00020273,3]
[347310169,1735679449792,-8771.98,0.00020273,3]
[347310170,1735679449802,-503.42,0.00020273,3]
[347310171,1735679449811,-1016.18,0.00020273,3]
[347310172,1735679449820,-500.0,0.00020273,3]
[347310173,1735679449830,-500.0,0.00020273,3]
[347310174,1735679449839,-956.62,0.00020273,3]
[347310175,1735679449849,-845.91,0.00020273,3]
[347310176,1735679449858,-500.0,0.00020273,3]
[347310177,1735679449869,-500.0,0.00020273,3]
[347310178,1735679449887,-727.17,0.00020273,3]
[347310179,1735679449897,-500.0,0.00020273,3]
[347310180,1735679449907,-571.77,0.00020273,3]
[347310181,1735679449916,-2896.96,0.00020273,3]
[347310182,1735679449929,-1237.87,0.00020273,3]
[347310183,1735679449938,-565.9,0.00020273,3]
[347310184,1735679449947,-4261.59,0.00020273,3]
[347310185,1735679449960,-500.0,0.00020273,3]
[347310186,1735679449970,-1582.67,0.00020273,3]
[347310187,1735679449979,-500.0,0.00020273,3]
[347310188,1735679449989,-389.805421,0.00020273,2]
[347310189,1735679449998,-389.805421,0.00020273,2]
[347310190,1735679450007,-151.0,0.000203,4]
[347310191,1735679450016,-151.0,0.000203,3]
[347310192,1735679450025,-344.8621639,0.00020305,2]
[347310193,1735679450035,-1143.25929191,0.00020321,2]
[347310194,1735679450044,-389.805421,0.00020321,2]
[347310195,1735679450054,-389.805421,0.00020321,2]
[347310196,1735679450064,-151.0,0.000204,4]
[347310197,1735679450075,-709.1877266,0.00020403,2]
[347310198,1735679450085,-400.0,0.00020447,2]
[347310199,1735679450094,-344.8621639,0.00020481,2]
[347310200,1735679450103,-151.0,0.000205,3]
[347310201,1735679450113,-276.99246,0.00020521,2]
[347310202,1735679450123,-500.0,0.00020547,3]
[347310203,1735679450132,-500.0,0.00020547,3]
[347310204,1735679450142,-500.0,0.00020547,3]
[347310205,1735679450152,-187.830355,0.00020547,2]
[347310206,1735679450162,-151.0,0.00020547,2]
[347310207,1735679450171,-151.0,0.00020547,2]
[347310208,1735679450181,-555.25,0.00020547,3]
[347310209,1735679450190,-7797.53,0.00020547,3]
[347310210,1735679450200,-500.0,0.00020547,3]
[347310211,1735679450211,-853.75,0.00020547,3]
[347310212,1735679450220,-150.21,0.00020547,2]
[347310213,1735679450230,-150.18,0.00020547,2]
[347310214,1735679450239,-500.0,0.00020547,3]
[347310215,1735679450248,-1271.48,0.00020547,3]
[347310216,1735679450257,-1470.73,0.00020547,3]
[347310217,1735679450266,-500.0,0.00020547,3]
[347310218,1735679450276,-532.45,0.00020547,3]
[347310219,1735679450285,-500.0,0.00020547,3]
[347310220,1735679450294,-500.0,0.00020547,3]
[347310221,1735679450303,-500.0,0.00020547,3]
[347310222,1735679450311,-855.05,0.00020547,3]
[347310223,1735679450320,-500.0,0.00020547,3]
[347310224,1735679450329,-456.331573,0.00020547,2]
[347310225,1735679450339,-683.45,0.00020547,3]
[347310226,1735679450348,-500.0,0.00020547,3]
[347310227,1735679450357,-500.0,0.00020547,3]
[347310228,1735679450366,-456.331573,0.00020547,2]
[347310229,1735679450375,-772.63,0.00020547,3]
[347310230,1735679450384,-500.0,0.00020547,3]
[347310231,1735679450393,-719.37,0.00020547,3]
[347310232,1735679450403,-500.0,0.00020547,3]
[347310233,1735679450411,-500.0,0.00020547,3]
[347310234,1735679450421,-500.0,0.00020547,3]
[347310235,1735679450430,-500.0,0.00020547,3]
[347310236,1735679450439,-500.0,0.00020547,3]
[347310237,1735679450448,-500.0,0.00020547,3]
[347310238,1735679450457,-595.35,0.00020547,3]
[347310239,1735679450466,-500.0,0.00020547,3]
[347310240,1735679450475,-500.0,0.00020547,3]
[347310241,1735679450484,-500.0,0.00020547,3]
[347310242,1735679450493,-500.0,0.00020547,2]
[347310243,1735679450502,-313.136126,0.00020547,2]
[347310244,1735679450511,-5062.37,0.00020547,3]
[347310245,1735679450520,-500.0,0.00020547,3]
[347310246,1735679450530,-623.88,0.00020547,3]
[347310247,1735679450539,-500.0,0.00020547,3]
[347310248,1735679450547,-906.38,0.00020547,3]
[347310249,1735679450556,-151.0,0.00020547,2]
[347310250,1735679450565,-624.44,0.00020547,3]
[347310251,1735679450574,-340.834427,0.00020547,2]
[347310252,1735679450583,-597.87,0.00020547,3]
[347310253,1735679450593,-340.834427,0.00020547,2]
[347310254,1735679450602,-500.0,0.00020547,3]
[347310255,1735679450611,-500.0,0.00020547,3]
[347310256,1735679450620,-750.06,0.00020547,3]
[347310257,1735679450629,-1089.62,0.00020547,3]
[347310258,1735679450638,-557.74,0.00020547,3]
[347310259,1735679450648,-500.0,0.00020547,3]
[347310260,1735679450657,-500.0,0.00020547,3]
[347310261,1735679450665,-1061.03,0.00020547,3]
[347310262,1735679450675,-500.0,0.00020547,3]
[347310263,1735679450683,-231.819887,0.00020547,2]
[347310264,1735679450693,-735.12,0.00020547,3]
[347310265,1735679450701,-231.819887,0.00020547,2]
[347310266,1735679450710,-561.1,0.00020547,3]
[347310267,1735679450719,-150.18,0.00020547,2]
[347310268,1735679450728,-150.18,0.00020547,2]
[347310269,1735679450738,-230.623201,0.00020547,2]
[347310270,1735679450747,-150.28791376,0.00020547,2]
[347310271,1735679450756,-500.0,0.00020547,3]
[347310272,1735679450765,-230.623201,0.00020547,2]
[347310273,1735679450774,-500.0,0.00020547,3]
[347310274,1735679450783,-723.8,0.00020547,3]
[347310275,1735679450792,-151.0,0.00020547,2]
[347310276,1735679450801,-1078.54,0.00020547,3]
[347310277,1735679450809,-264.728668,0.00020547,2]
[347310278,1735679450818,-614.34,0.00020547,3]
[347310279,1735679450827,-500.0,0.00020547,3]
[347310280,1735679450836,-3291.31,0.00020547,3]
[347310281,1735679450845,-264.728668,0.00020547,2]
[347310282,1735679450855,-920.06,0.00020547,3]
[347310283,1735679450864,-596.25,0.00020547,3]
[347310284,1735679450876,-371.616481,0.00020547,2]
[347310285,1735679450885,-371.616481,0.00020547,2]
[347310286,1735679450895,-2095.76,0.00020547,3]
[347310287,1735679450903,-826.6,0.00020547,3]
[347310288,1735679450913,-500.0,0.00020547,3]
[347310289,1735679450922,-523.411285,0.00020547,2]
[347310290,1735679450931,-500.0,0.00020547,3]
[347310291,1735679450940,-833.34,0.00020547,3]
[347310292,1735679450949,-500.0,0.00020547,3]
[347310293,1735679450962,-523.411285,0.00020547,2]
[347310294,1735679450971,-1558.72,0.00020547,3]
[347310295,1735679450980,-2078.82,0.00020547,3]
[347310296,1735679450989,-500.0,0.00020547,3]
[347310297,1735679450998,-275.501114,0.00020547,2]
[347310298,1735679451007,-275.501114,0.00020547,2]
[347310299,1735679451016,-500.0,0.00020547,3]
[347310300,1735679451025,-1419.68,0.00020547,3]
[347310301,1735679451035,-169.592575,0.00020547,2]
[347310302,1735679451044,-169.592575,0.00020547,2]
[347310303,1735679451053,-500.0,0.00020547,3]
[347310304,1735679451149,-2921.96,0.00020547,3]
[347310305,1735679451158,-500.0,0.00020547,3]
[347310306,1735679451167,-799.98,0.00020547,3]
[347310307,1735679451176,-191.44974,0.00020547,2]
[347310308,1735679451185,-191.44974,0.00020547,2]
[347310309,1735679451194,-689.76,0.00020547,3]
[347310310,1735679451203,-861.64,0.00020547,3]
[347310311,1735679451214,-600.4,0.00020547,3]
[347310312,1735679451223,-500.0,0.00020547,2]
[347310313,1735679451232,-150.18,0.00020547,2]
[347310314,1735679451241,-731.78,0.00020547,3]
[347310315,1735679451250,-150.18,0.00020547,2]
[347310316,1735679451259,-150.21,0.00020547,2]
[347310317,1735679451268,-751.77,0.00020547,3]
[347310318,1735679451277,-500.0,0.00020547,3]
[347310319,1735679451286,-500.0,0.00020547,2]
[347310320,1735679451295,-500.0,0.00020547,2]
[347310321,1735679451304,-150.18,0.00020547,2]
[347310322,1735679451313,-150.24,0.00020547,2]
[347310323,1735679451322,-730.16,0.00020547,3]
[347310324,1735679451331,-756.61,0.00020547,3]
[347310325,1735679451340,-500.0,0.00020547,3]
[347310326,1735679451349,-2423.86,0.00020547,3]
[347310327,1735679451358,-1420.74,0.00020547,3]
[347310328,1735679451367,-39820.71,0.00020547,3]
[347310329,1735679451376,-500.0,0.00020547,3]
[347310330,1735679451385,-1014.13,0.00020547,3]
[347310331,1735679451394,-500.0,0.00020547,3]
[347310332,1735679451403,-1726.52,0.00020547,3]
[347310333,1735679451413,-278.04075783,0.00020547,2]
[347310334,1735679451422,-6262.73,0.00020547,3]
[347310335,1735679451432,-1078.31,0.00020547,3]
[347310336,1735679451441,-1324.32,0.00020547,3]
[347310337,1735679451450,-1826.49,0.00020547,3]
[347310338,1735679451460,-500.0,0.00020547,3]
[347310339,1735679451470,-150.18,0.00020547,2]
[347310340,1735679451478,-203.43496703,0.00020547,2]
[347310341,1735679451487,-885.37,0.00020547,3]
[347310342,1735679451497,-159.4091673,0.00020547,2]
[347310343,1735679451505,-961.81,0.00020547,3]
[347310344,1735679451514,-500.0,0.00020547,2]
[347310345,1735679451523,-754.45,0.00020547,3]
[347310346,1735679451533,-1477.71,0.00020547,3]
[347310347,1735679451542,-150.21,0.00020547,2]
[347310348,1735679451551,-915.66,0.00020547,3]
[347310349,1735679451559,-500.0,0.00020547,3]
[347310350,1735679451569,-500.0,0.00020547,3]
[347310351,1735679451579,-687.313315,0.00020547,2]
[347310352,1735679451588,-500.0,0.00020547,3]
[347310353,1735679451596,-500.0,0.00020547,3]
[347310354,1735679451606,-687.313315,0.00020547,2]
[347310355,1735679451615,-500.0,0.00020547,3]
[347310356,1735679451624,-830.37,0.00020547,3]
[347310357,1735679451633,-1182.84,0.00020547,3]
[347310358,1735679451642,-5516.38,0.00020547,3]
[347310359,1735679451652,-500.0,0.00020547,3]
[347310360,1735679451661,-500.0,0.00020547,3]
[347310361,1735679451670,-500.0,0.00020547,3]
[347310362,1735679451679,-500.0,0.00020547,3]
[347310363,1735679451689,-500.0,0.00020547,3]
[347310364,1735679451698,-1548.35,0.00020547,3]
[347310365,1735679451707,-8771.98,0.00020547,3]
[347310366,1735679451716,-503.42,0.00020547,3]
[347310367,1735679451726,-1016.18,0.00020547,3]
[347310368,1735679451736,-500.0,0.00020547,3]
[347310369,1735679451745,-500.0,0.00020547,3]
[347310370,1735679451754,-956.62,0.00020547,3]
[347310371,1735679451763,-845.91,0.00020547,3]
[347310372,1735679451772,-500.0,0.00020547,3]
[347310373,1735679451781,-500.0,0.00020547,3]
[347310374,1735679451791,-727.17,0.00020547,3]
[347310375,1735679451800,-500.0,0.00020547,3]
[347310376,1735679451809,-571.77,0.00020547,3]
[347310377,1735679451818,-2896.96,0.00020547,3]
[347310378,1735679451828,-1237.87,0.00020547,3]
[347310379,1735679451837,-565.9,0.00020547,3]
[347310380,1735679451846,-4261.59,0.00020547,3]
[347310381,1735679451855,-500.0,0.00020547,3]
[347310382,1735679451865,-1582.67,0.00020547,3]
[347310383,1735679451878,-500.0,0.00020547,3]
[347310384,1735679451887,-389.805421,0.00020547,2]
[347310385,1735679451895,-389.805421,0.00020547,2]
[347310386,1735679451904,-1000.0,0.00020558,2]
[347310387,1735679451915,-500.0,0.00020573,2]
[347310388,1735679451924,-5541.76,0.000206,2]
[347310389,1735679451933,-11200.39,0.000206,2]
[347310390,1735679451942,-151.0,0.000206,2]